bitfinex/quotes_ETHUSD_20250507
["timestamp","ask_amount","ask_price","bid_price","bid_amount"]
[1746625214380,0.13695071,1830.9,1830.8,0.70874617]
[1746625214381,5.46179474,1830.9,1830.8,0.70874617]
[1746625214887,5.5988448,1830.9,1830.8,0.70874617]
[1746625216383,5.5988448,1830.9,1830.7,7.03285]
[1746625216696,5.59900763,1830.9,1830.7,7.03285]
[1746625216904,11.06106733,1830.9,1830.7,7.03285]
[1746625217108,0.13705006,1830.9,1830.7,12.5497547]
[1746625217271,0.13705006,1830.9,1830.7,12.4951385]
[1746625217469,5.46162204,1831.0,1830.8,1.24951385]
[1746625217672,0.13695069,1830.9,1830.8,1.24951385]
[1746625217867,0.13695069,1830.9,1830.6,6.04]
[1746625217868,5.46222021,1830.8,1830.6,6.04]
[1746625218085,5.46222021,1830.8,1830.7,5.615]
[1746625218269,9.37201285,1830.8,1830.7,5.615]
[1746625218469,12.37201285,1830.8,1830.7,5.615]
[1746625219013,6.23238825,1830.5,1830.4,25.304]
[1746625219167,9.36868089,1830.5,1830.4,25.304]
[1746625219715,6.23238825,1830.5,1830.4,25.304]
[1746625219881,6.23238825,1830.5,1830.4,19.689]
[1746625222519,5.46298825,1830.5,1830.4,19.689]
[1746625222818,5.46298825,1830.5,1830.4,21.50798455]
[1746625224533,5.59558064,1830.5,1830.4,21.50798455]
[1746625224731,5.59558064,1830.5,1830.4,19.689]
[1746625230934,0.13259239,1830.5,1830.4,25.90498671]
[1746625231141,5.46197662,1830.9,1830.5,5.46286423]
[1746625231445,0.13594611,1830.8,1830.6,6.26990611]
[1746625231646,0.13594611,1830.8,1830.7,11.70538204]
[1746625231861,21.47043595,1831.8,1830.9,5.46163054]
[1746625231862,5.87529731,1831.3,1830.9,5.46163054]
[1746625232166,0.2866107,1831.2,1831.0,0.8041]
[1746625232463,0.2866107,1831.2,1831.1,11.13180181]
[1746625232767,0.4145198,1831.3,1831.1,7.35573947]
[1746625233070,5.74913515,1831.2,1831.1,7.35573947]
[1746625233257,0.2882352,1831.2,1831.1,5.616]
[1746625233955,0.2882352,1831.2,1831.1,6.02601267]
[1746625235080,0.2882352,1831.2,1831.1,5.616]
[1746625235378,5.74913515,1831.2,1831.1,5.616]
[1746625235598,5.74913515,1831.2,1831.1,6.1776]
[1746625235877,5.74913515,1831.2,1831.1,5.616]
[1746625241192,0.2882352,1831.2,1831.1,11.86059818]
[1746625241354,0.2882352,1831.2,1831.1,14.86059818]
[1746625241971,0.2882352,1831.2,1831.1,9.3994]
[1746625242297,0.2882352,1831.2,1831.1,16.34666719]
[1746625243794,0.2882352,1831.2,1831.1,10.88546901]
[1746625243991,0.2882352,1831.2,1831.1,36.02366719]
[1746625244603,0.4145198,1831.3,1831.1,36.02366719]
[1746625244897,0.2904251,1831.2,1831.1,36.02366719]
[1746625246299,0.4145198,1831.3,1831.2,5.46089995]
[1746625246460,5.45905132,1831.9,1831.3,0.7707]
[1746625246665,0.29444252,1831.8,1831.5,6.23060885]
[1746625246899,5.45904212,1831.9,1831.6,5.66658818]
[1746625247098,5.75436425,1831.8,1831.7,0.56665882]
[1746625248082,0.29512715,1831.8,1831.7,0.56665882]
[1746625248489,5.45821776,1832.1,1831.7,12.28787653]
[1746625248732,0.29626094,1832.0,1831.8,5.51356545]
[1746625248911,5.45833142,1832.1,1831.9,0.55135655]
[1746625249116,5.45833142,1832.1,1831.8,0.05458029]
[1746625249117,5.45833142,1832.1,1832.0,5.612]
[1746625249291,5.45801043,1832.2,1832.0,5.612]
[1746625249486,6.45782654,1832.3,1832.0,5.612]
[1746625249686,1.0,1832.3,1832.1,0.7971]
[1746625249934,1.0,1832.3,1832.1,6.30967069]
[1746625250143,1.0,1832.3,1832.2,6.08888651]
[1746625250353,0.71875,1832.3,1832.2,15.69707061]
[1746625250491,0.4145198,1833.2,1833.1,5.45523975]
[1746625250692,0.4145198,1833.2,1833.1,8.612]
[1746625250902,0.4145198,1833.2,1833.1,6.52773564]
[1746625251129,5.86946197,1833.2,1833.1,5.612]
[1746625251725,5.45523975,1833.1,1832.5,3.7636]
[1746625251897,5.45625917,1832.8,1832.6,5.612]
[1746625252229,5.45631281,1832.8,1832.6,5.612]
[1746625252393,5.45648598,1832.7,1832.5,3.7636]
[1746625252598,5.45648598,1832.7,1832.6,5.61]
[1746625252810,5.45631281,1832.8,1832.6,5.61]
[1746625253132,5.45614821,1832.8,1832.6,5.66456009]
[1746625254105,5.4564304,1832.7,1832.6,5.61]
[1746625254540,5.71060003,1832.7,1832.6,5.61]
[1746625256754,0.25416963,1832.7,1832.6,5.61]
[1746625256974,0.25416963,1832.7,1832.6,6.9949]
[1746625257183,5.45563937,1833.0,1832.6,13.0349]
[1746625257332,0.25932287,1832.9,1832.6,13.0349]
[1746625258538,5.45543482,1833.1,1832.6,13.0349]
[1746625258740,5.71449317,1833.0,1832.7,7.34349]
[1746625258940,0.25894788,1833.0,1832.7,7.34349]
[1746625259279,5.86960133,1833.2,1832.8,0.05454824]
[1746625259461,0.25843051,1832.9,1832.8,0.05454824]
[1746625259664,5.86960133,1833.2,1832.8,0.05454824]
[1746625259861,0.25843051,1832.9,1832.8,0.79435206]
[1746625260059,0.4145198,1833.2,1832.9,0.8246]
[1746625260258,0.4145198,1833.2,1833.1,4.3746]
[1746625260457,0.4145198,1833.2,1833.1,29.5276]
[1746625260662,0.4145198,1833.2,1833.1,23.4876]
[1746625260858,0.4145198,1833.2,1833.1,23.39726]
[1746625261061,5.86946197,1833.2,1833.1,22.57266]
[1746625261264,5.86946197,1833.2,1833.1,19.663]
[1746625262402,5.86946197,1833.2,1833.1,25.271]
[1746625262702,6.63216197,1833.2,1833.1,25.271]
[1746625266860,6.63216197,1833.2,1833.1,25.27]
[1746625267276,5.86946197,1833.2,1833.1,25.27]
[1746625267479,0.4145198,1833.2,1833.1,25.27]
[1746625267678,0.4145198,1833.2,1833.1,27.797]
[1746625267878,5.45494217,1833.2,1833.1,27.797]
[1746625268301,5.45482688,1833.3,1833.1,27.797]
[1746625268478,6.22493352,1833.4,1833.1,27.797]
[1746625268675,5.45429518,1833.5,1833.2,0.0545428]
[1746625269003,0.8004,1834.0,1833.3,0.7528]
[1746625269168,5.45320286,1833.8,1833.4,6.04]
[1746625269368,10.90661935,1833.8,1833.5,5.607]
[1746625269676,0.20428975,1833.7,1833.6,0.05452972]
[1746625270292,0.20428975,1833.7,1833.6,0.7833]
[1746625270489,5.65774451,1833.7,1833.5,5.607]
[1746625270681,5.45375218,1833.6,1833.5,5.607]
[1746625270877,5.6618628,1833.6,1833.5,5.607]
[1746625271079,5.45494217,1833.2,1833.1,19.663]
[1746625271403,0.20604207,1833.2,1833.1,25.27]
[1746625271591,5.66098424,1833.2,1833.1,27.87323]
[1746625271762,0.20604207,1833.2,1833.1,27.87323]
[1746625271964,5.66098424,1833.2,1833.1,25.27]
[1746625272269,6.47658424,1833.2,1833.1,25.27]
[1746625272670,0.7856,1834.5,1833.2,0.7546]
[1746625272901,5.8110841,1834.5,1833.4,3.7546]
[1746625273237,0.8056,1834.1,1833.5,5.607]
[1746625273372,5.45306853,1833.9,1833.5,6.54316]
[1746625273707,5.45272244,1834.0,1833.5,6.54316]
[1746625274003,5.45345476,1833.7,1833.6,5.607]
[1746625274208,6.5892841,1833.8,1833.6,5.607]
[1746625274511,6.25397391,1833.7,1833.6,5.607]
[1746625275204,6.25414076,1833.7,1833.6,5.607]
[1746625275511,5.45329694,1833.8,1833.6,5.607]
[1746625275812,5.45345476,1833.7,1833.6,5.607]
[1746625276208,6.25395476,1833.7,1833.6,5.607]
[1746625276411,5.45345476,1833.7,1833.6,5.607]
[1746625276808,6.25395476,1833.7,1833.6,5.607]
[1746625276997,9.25395476,1833.7,1833.6,5.607]
[1746625278487,6.25395476,1833.7,1833.6,5.607]
[1746625279026,5.45345476,1833.7,1833.6,5.607]
[1746625279192,9.20986122,1833.9,1833.6,5.607]
[1746625279392,5.4532629,1833.8,1833.6,5.607]
[1746625280127,5.45345476,1833.7,1833.6,5.607]
[1746625280326,5.60696893,1833.7,1833.6,5.607]
[1746625280925,9.02148873,1833.7,1833.6,5.607]
[1746625281130,8.60696893,1833.7,1833.6,5.607]
[1746625281425,5.60696893,1833.7,1833.6,5.607]
[1746625281596,5.60706671,1833.7,1833.2,6.8146]
[1746625281929,5.45376129,1833.6,1833.3,12.56246]
[1746625282089,5.6071572,1833.7,1833.3,12.56246]
[1746625282294,5.45295821,1833.9,1833.4,1.06986504]
[1746625282601,5.60845226,1833.8,1833.4,1.06986504]
[1746625282802,0.15514241,1833.8,1833.4,1.06986504]
[1746625283004,5.45320031,1833.8,1833.4,1.06986504]
[1746625283210,0.15506474,1833.7,1833.4,1.06986504]
[1746625283603,5.47244809,1834.1,1833.6,0.82]
[1746625283803,0.15623717,1834.0,1833.7,5.89452288]
[1746625284021,0.15623717,1834.0,1833.7,7.6965607]
[1746625284022,5.45315737,1833.8,1833.7,7.6965607]
[1746625284223,5.45315737,1833.8,1833.7,5.84]
[1746625284426,5.60801975,1833.8,1833.7,5.84]
[1746625286309,0.15486238,1833.8,1833.7,6.6246]
[1746625286504,5.45278753,1834.0,1833.7,6.67912769]
[1746625286711,0.14256047,1833.9,1833.8,0.66791277]
[1746625287534,0.14256047,1833.9,1833.8,1.47201277]
[1746625287824,0.02,1834.1,1833.8,1.47201277]
[1746625287825,5.45257439,1834.0,1833.8,1.47201277]
[1746625288024,0.14291191,1833.9,1833.8,1.77679947]
[1746625288228,0.14291191,1833.9,1833.8,0.3047867]
[1746625288434,0.14291191,1833.9,1833.8,12.9437708]
[1746625288598,0.02,1834.1,1833.8,7.1326867]
[1746625288794,0.14456086,1834.0,1833.9,1.01805537]
[1746625289200,0.14456086,1834.0,1833.9,4.01805537]
[1746625289396,0.14456086,1834.0,1833.9,1.01805537]
[1746625289636,0.14456086,1834.0,1833.9,1.81485537]
[1746625290538,0.02,1834.1,1833.9,7.85485537]
[1746625290695,5.4515418,1834.4,1834.0,0.78548554]
[1746625290902,5.4515418,1834.4,1834.1,5.839]
[1746625291514,5.45118227,1834.5,1834.2,19.648]
[1746625291814,5.4503988,1834.8,1834.3,0.7877]
[1746625292040,5.45036344,1834.8,1834.4,0.05450288]
[1746625292213,0.4145198,1835.0,1834.5,5.839]
[1746625292413,5.45055524,1834.7,1834.5,5.839]
[1746625292628,5.45066431,1834.7,1834.5,5.839]
[1746625293151,5.86429856,1835.0,1834.6,0.05450224]
[1746625293435,5.86427564,1835.0,1834.7,0.7877]
[1746625293652,0.4145198,1835.0,1834.8,0.05449516]
[1746625293946,0.4145198,1835.0,1834.9,5.839]
[1746625294245,0.4145198,1835.0,1834.9,6.6433]
[1746625294815,5.4501853,1834.8,1834.7,6.04]
[1746625295012,5.4501853,1834.8,1834.7,11.878]
[1746625295515,5.4501853,1834.8,1834.7,5.838]
[1746625295929,6.20728827,1834.9,1834.7,5.838]
[1746625296142,5.4501853,1834.8,1834.7,5.838]
[1746625296934,5.4501853,1834.8,1834.7,6.5891]
[1746625297233,5.4501853,1834.8,1834.7,5.838]
[1746625297919,6.2660853,1834.8,1834.7,5.838]
[1746625298334,9.2660853,1834.8,1834.7,5.838]
[1746625299125,8.4501853,1834.8,1834.7,5.838]
[1746625299441,6.27907093,1834.3,1834.2,3.64238096]
[1746625299642,9.27907093,1834.3,1834.2,3.64238096]
[1746625299824,9.42899184,1834.3,1834.2,3.64238096]
[1746625300800,9.97899184,1834.3,1834.2,3.64238096]
[1746625301000,5.45226541,1834.1,1834.0,5.837]
[1746625301200,5.60251785,1834.1,1834.0,5.837]
[1746625304143,8.60251785,1834.1,1834.0,5.837]
[1746625304638,5.45320083,1833.8,1833.5,0.7953]
[1746625304843,5.45335458,1833.8,1833.6,5.838]
[1746625305016,0.14557056,1833.7,1833.6,5.89253144]
[1746625305416,5.59902532,1833.7,1833.6,5.838]
[1746625306038,0.14557056,1833.7,1833.5,0.84983269]
[1746625306334,5.59902532,1833.7,1833.6,5.94]
[1746625308341,0.14557056,1833.7,1833.4,0.05453488]
[1746625308542,5.45356226,1833.7,1833.5,5.94]
[1746625308741,0.14158265,1833.6,1833.5,5.94]
[1746625308919,5.45356226,1833.7,1833.5,5.94]
[1746625309244,0.1415475,1833.6,1833.5,5.94]
[1746625309409,0.1415475,1833.6,1833.5,6.7367]
[1746625309608,5.45327599,1833.8,1833.5,7.6698628]
[1746625309945,0.14188292,1833.7,1833.5,13.4809469]
[1746625310140,0.14188292,1833.7,1833.5,13.42641445]
[1746625310340,5.45278844,1834.0,1833.6,0.05452429]
[1746625310518,5.45278844,1834.0,1833.6,1.40261816]
[1746625310716,0.14252664,1833.9,1833.6,1.40261816]
[1746625310933,10.904962,1834.1,1833.6,1.40261816]
[1746625311264,0.14304348,1834.0,1833.6,1.70708581]
[1746625311432,0.14304348,1834.0,1833.7,6.6130841]
[1746625311776,0.14233163,1833.9,1833.8,0.71582803]
[1746625311919,5.45212842,1834.2,1833.8,6.60130841]
[1746625312119,5.45274102,1834.0,1833.8,6.60130841]
[1746625312326,0.1424301,1833.9,1833.8,5.94]
[1746625312560,6.38669012,1833.9,1833.8,5.94]
[1746625313131,6.38669468,1833.9,1833.4,0.8326]
[1746625313343,5.45358152,1833.7,1833.5,5.94]
[1746625313543,0.14183077,1833.6,1833.5,5.99453888]
[1746625313764,10.90666965,1833.8,1833.5,5.99453888]
[1746625313971,0.14254277,1833.7,1833.5,5.94]
[1746625314284,5.59617592,1833.7,1833.6,5.94]
[1746625315874,5.4541888,1833.5,1833.3,23.28538096]
[1746625316047,5.4541888,1833.5,1833.4,5.94]
[1746625316367,0.7914,1833.9,1833.4,5.94]
[1746625316572,5.45354542,1833.7,1833.5,0.594]
[1746625317232,5.45346856,1833.7,1833.5,1.3684]
[1746625317434,5.45375218,1833.6,1833.5,1.3684]
[1746625317742,5.45404963,1833.5,1833.4,5.94]
[1746625321559,6.23910155,1833.6,1833.4,5.94]
[1746625321893,5.45390155,1833.6,1833.4,5.99453969]
[1746625322133,5.45404963,1833.5,1833.4,5.94]
[1746625323199,6.27304963,1833.5,1833.4,5.94]
[1746625325161,5.45404963,1833.5,1833.4,5.94]
[1746625327591,5.45390935,1833.6,1833.4,5.94]
[1746625327835,10.90789038,1833.6,1833.4,5.99453731]
[1746625328041,5.45404963,1833.5,1833.4,5.94]
[1746625329353,5.45390935,1833.6,1833.4,5.99454044]
[1746625329488,5.45390935,1833.6,1833.4,8.63361448]
[1746625329688,0.13827128,1833.5,1833.4,8.63361448]
[1746625329993,0.13827128,1833.5,1833.4,8.93920916]
[1746625330190,5.4530127,1833.9,1833.5,0.7557]
[1746625330427,5.59250764,1833.8,1833.6,0.05452927]
[1746625330626,5.59250764,1833.8,1833.5,0.7557]
[1746625330790,5.45348247,1833.7,1833.5,0.7557]
[1746625330990,0.13836762,1833.6,1833.5,0.7557]
[1746625331222,5.45348406,1833.7,1833.5,1.6891774]
[1746625331428,5.45348406,1833.7,1833.5,1.99479472]
[1746625331640,0.1384538,1833.6,1833.5,1.99479472]
[1746625331945,10.90543849,1834.0,1833.5,1.99479472]
[1746625332209,10.90543849,1834.0,1833.5,1.6891774]
[1746625332210,5.45264009,1834.0,1833.5,1.6891774]
[1746625332350,5.59329549,1833.9,1833.5,1.6891774]
[1746625333527,5.45320364,1833.8,1833.6,0.3055726]
[1746625333758,5.59355231,1833.9,1833.6,0.3055726]
[1746625333931,5.45345476,1833.7,1833.6,0.3055726]
[1746625334331,5.45404963,1833.5,1833.4,5.94]
[1746625334848,5.59318158,1833.5,1833.4,5.94]
[1746625335432,0.13913195,1833.5,1833.4,5.94]
[1746625335758,5.59318158,1833.5,1833.4,5.99453787]
[1746625336053,5.59318158,1833.5,1833.4,5.94]
[1746625336236,5.59318158,1833.5,1833.4,6.24574203]
[1746625336559,0.13913195,1833.5,1833.4,8.91430623]
[1746625336725,0.13913195,1833.5,1833.4,8.96884409]
[1746625337256,5.59318158,1833.5,1833.4,8.96884409]
[1746625337447,5.59318158,1833.5,1833.4,6.24574203]
[1746625338152,5.59318158,1833.5,1833.4,5.94]
[1746625339333,0.13913195,1833.5,1833.4,5.94]
[1746625339532,0.13913195,1833.5,1833.4,5.99453766]
[1746625340066,5.59318158,1833.5,1833.4,5.94]
[1746625340632,0.13913195,1833.5,1833.4,5.94]
[1746625340831,5.59318158,1833.5,1833.4,5.94]
[1746625341065,5.59318158,1833.5,1833.3,19.643]
[1746625341246,5.59318158,1833.5,1833.4,5.904]
[1746625342063,0.13913195,1833.5,1833.4,5.904]
[1746625342565,0.13913195,1833.5,1833.4,8.51324034]
[1746625342868,10.90729422,1833.7,1833.4,8.51324034]
[1746625343053,5.45348352,1833.7,1833.4,8.51324034]
[1746625343233,0.13556241,1833.6,1833.4,8.51324034]
[1746625343564,5.4530182,1833.9,1833.5,0.7945]
[1746625343764,5.4530182,1833.9,1833.6,0.05452873]
[1746625343953,5.45364522,1833.7,1833.5,1.72527403]
[1746625344272,5.4538645,1833.6,1833.4,11.944]
[1746625344571,0.13533793,1833.5,1833.4,11.944]
[1746625344864,5.58938756,1833.5,1833.4,5.904]
[1746625345479,5.58956837,1833.5,1833.4,5.904]
[1746625347637,6.35876837,1833.5,1833.4,5.904]
[1746625349196,9.35876837,1833.5,1833.4,5.904]
[1746625349534,9.90876837,1833.5,1833.4,5.904]
[1746625349741,9.35876837,1833.5,1833.4,5.904]
[1746625350434,5.58938756,1833.5,1833.4,5.904]
[1746625353954,8.58938756,1833.5,1833.4,5.904]
[1746625354155,9.34278756,1833.5,1833.4,5.904]
[1746625356088,5.58938756,1833.5,1833.4,5.904]
[1746625356283,0.13533793,1833.5,1833.4,5.904]
[1746625357080,5.45328463,1833.8,1833.4,6.7692373]
[1746625357290,0.13463547,1833.5,1833.4,6.7692373]
[1746625357444,5.45274263,1834.0,1833.4,11.7696214]
[1746625357649,0.14147334,1833.9,1833.5,0.8107]
[1746625357857,5.45274263,1834.0,1833.6,0.05452784]
[1746625358063,5.45333968,1833.8,1833.5,0.8107]
[1746625358384,5.59389626,1833.7,1833.5,1.48217]
[1746625358879,5.59396497,1833.7,1833.5,1.48217]
[1746625359037,5.59396497,1833.7,1833.5,1.5367026]
[1746625362178,5.59393474,1833.7,1833.5,1.5367026]
[1746625362394,5.59393474,1833.7,1833.5,0.67147]
[1746625362692,5.45404963,1833.5,1833.4,29.19738096]
[1746625362874,5.45393267,1833.6,1833.4,29.19738096]
[1746625363060,0.12926005,1833.5,1833.4,29.19738096]
[1746625363261,5.58330968,1833.5,1833.4,29.19738096]
[1746625363500,0.12926005,1833.5,1833.4,29.19738096]
[1746625364078,5.58330968,1833.5,1833.4,29.19738096]
[1746625364277,0.12926005,1833.5,1833.4,29.19738096]
[1746625366774,0.12926005,1833.5,1833.4,28.5498081]
[1746625366979,5.45362133,1833.7,1833.4,28.5498081]
[1746625367152,5.45299279,1833.9,1833.4,28.5498081]
[1746625367373,5.58568943,1833.8,1833.5,0.8126]
[1746625367551,0.13250685,1833.8,1833.5,6.6236841]
[1746625367757,5.4527362,1834.0,1833.6,0.66236841]
[1746625368060,0.13292622,1833.9,1833.6,0.66236841]
[1746625368578,0.13292622,1833.9,1833.7,0.7536]
[1746625368879,5.45241485,1834.1,1833.8,5.858]
[1746625369094,0.13453065,1834.0,1833.8,5.858]
[1746625369260,0.13453065,1834.0,1833.8,6.57368438]
[1746625369888,5.45286002,1833.9,1833.8,6.57368438]
[1746625370095,0.13401384,1833.9,1833.8,6.51916]
[1746625370600,5.45244331,1834.1,1833.8,6.57368416]
[1746625370841,0.13491726,1834.0,1833.8,6.51916]
[1746625371316,0.13491726,1834.0,1833.8,6.57368411]
[1746625371802,0.13491726,1834.0,1833.9,1.40776841]
[1746625371975,5.45062763,1834.7,1833.9,15.50845251]
[1746625372165,0.13031347,1834.6,1834.2,0.7504]
[1746625372369,5.45080173,1834.6,1834.3,5.91250713]
[1746625372600,0.12827511,1834.5,1834.4,0.59125071]
[1746625372998,5.45071404,1834.7,1834.4,0.59125071]
[1746625373164,0.12879151,1834.6,1834.4,20.23925071]
[1746625373370,5.45009668,1834.9,1834.5,0.05450597]
[1746625373570,1.1827198,1835.0,1834.5,0.85540597]
[1746625373571,5.57715943,1834.8,1834.5,0.85540597]
[1746625373809,5.45099265,1834.6,1834.4,19.648]
[1746625374008,5.57623339,1834.5,1834.4,19.648]
[1746625374311,5.57623339,1834.5,1834.4,25.506]
[1746625378518,0.12515681,1834.5,1834.4,25.506]
[1746625378926,5.45087527,1834.6,1834.4,25.506]
[1746625379104,0.1282844,1834.5,1834.4,25.506]
[1746625379303,0.1282844,1834.5,1834.4,28.0566]
[1746625379629,5.57936098,1834.5,1834.4,28.0566]
[1746625381523,5.57936098,1834.5,1834.4,25.506]
[1746625382022,0.1282844,1834.5,1834.4,25.506]
[1746625382357,5.57936098,1834.5,1834.4,25.506]
[1746625383340,6.40526098,1834.5,1834.4,25.506]
[1746625383640,9.40526098,1834.5,1834.4,19.648]
[1746625387134,6.00137374,1834.4,1834.3,5.856]
[1746625387358,9.79917374,1834.4,1834.3,5.856]
[1746625387639,9.92710087,1834.4,1834.3,5.856]
[1746625388037,5.45345476,1833.7,1833.6,19.644]
[1746625388331,0.12323982,1833.7,1833.6,25.5]
[1746625388640,5.45296257,1833.9,1833.6,28.1253]
[1746625388834,0.1227777,1833.8,1833.6,28.1253]
[1746625389001,5.45329454,1833.8,1833.6,28.1253]
[1746625389199,0.12396772,1833.7,1833.6,28.1253]
[1746625391309,10.9067246,1833.8,1833.6,28.1253]
[1746625391642,0.12435821,1833.7,1833.6,28.1253]
[1746625391842,5.57781297,1833.7,1833.6,28.1253]
[1746625392019,0.12435821,1833.7,1833.6,28.1253]
[1746625392648,5.45302997,1833.9,1833.6,28.1253]
[1746625392807,0.12256047,1833.8,1833.7,2.81253]
[1746625393004,5.45302997,1833.9,1833.7,2.81253]
[1746625393239,5.45241462,1834.1,1833.8,0.7817]
[1746625394515,5.4520609,1834.2,1833.8,0.7817]
[1746625394721,5.4520609,1834.2,1833.9,0.05452476]
[1746625394922,5.4520609,1834.2,1834.0,5.857]
[1746625395444,10.90429072,1834.2,1834.0,5.857]
[1746625395633,5.45226541,1834.1,1834.0,5.857]
[1746625395829,5.4520609,1834.2,1834.0,5.857]
[1746625396131,5.45226541,1834.1,1834.0,5.857]
[1746625400552,3.7539,1834.4,1834.0,5.857]
[1746625400717,5.45206664,1834.2,1834.0,5.857]
[1746625400911,5.45226541,1834.1,1834.0,6.4427]
[1746625401117,5.45226541,1834.1,1834.0,5.857]
[1746625401946,5.45206664,1834.2,1834.0,5.857]
[1746625402124,5.45181073,1834.3,1834.0,5.857]
[1746625402125,5.4518111,1834.3,1834.0,5.857]
[1746625402318,10.90249582,1834.5,1834.1,0.7858]
[1746625402536,5.45148099,1834.4,1834.1,0.84031915]
[1746625403254,5.45092608,1834.6,1834.1,0.84031915]
[1746625403459,5.45049438,1834.7,1834.3,5.8110841]
[1746625403762,5.45094615,1834.6,1834.4,6.43461563]
[1746625403927,5.45107658,1834.5,1834.4,5.799]
[1746625404337,5.45066006,1834.7,1834.5,0.83]
[1746625404823,0.12163621,1834.6,1834.5,0.83]
[1746625405060,5.45066006,1834.7,1834.5,0.83]
[1746625405360,5.57118325,1834.6,1834.4,5.799]
[1746625405562,5.57115708,1834.6,1834.4,5.799]
[1746625406254,0.12027788,1834.6,1834.4,6.4619]
[1746625406563,5.4506868,1834.7,1834.4,6.4619]
[1746625406730,0.12049924,1834.5,1834.4,6.4619]
[1746625406930,5.45081527,1834.6,1834.4,6.4619]
[1746625407132,0.12049924,1834.5,1834.4,6.4619]
[1746625408362,5.45082145,1834.6,1834.4,6.4619]
[1746625408673,0.11952507,1834.5,1834.4,6.4619]
[1746625409466,10.90130089,1834.7,1834.4,6.51640787]
[1746625409765,5.57083125,1834.6,1834.4,6.4619]
[1746625409953,0.12004145,1834.6,1834.4,6.51640788]
[1746625410260,5.45068945,1834.7,1834.4,6.51640788]
[1746625410471,0.12091881,1834.6,1834.5,1.40324079]
[1746625410770,0.4145198,1835.0,1834.6,0.7516]
[1746625410932,0.4145198,1835.0,1834.9,0.7516]
[1746625411134,0.4145198,1835.0,1834.9,5.85249033]
[1746625411334,0.4145198,1835.0,1834.9,11.37444083]
[1746625411567,0.4145198,1835.0,1834.9,11.31995744]
[1746625411772,0.4145198,1835.0,1834.9,14.70412759]
[1746625411937,0.4145198,1835.0,1834.9,14.43902097]
[1746625412349,0.4145198,1835.0,1834.9,21.02902097]
[1746625412560,0.4145198,1835.0,1834.9,21.43523362]
[1746625413151,0.4145198,1835.0,1834.9,21.70919705]
[1746625413554,5.44662309,1836.0,1835.4,0.8131]
[1746625413749,5.44662309,1836.0,1835.5,25.44]
[1746625413750,5.44716939,1835.9,1835.5,25.44]
[1746625413959,5.44716939,1835.9,1835.6,0.05447257]
[1746625414160,0.8188,1836.4,1835.6,0.8172]
[1746625414454,5.44680059,1836.0,1835.6,0.8172]
[1746625414650,5.44651328,1836.1,1835.6,6.64562901]
[1746625414861,5.44612942,1836.2,1835.7,0.6645629]
[1746625415087,5.44590148,1836.3,1835.9,0.7673]
[1746625415295,6.22195708,1836.8,1836.2,5.77396324]
[1746625415443,5.44556535,1836.4,1836.3,0.57739632]
[1746625415782,5.44762746,1835.7,1835.6,0.7673]
[1746625415969,5.44605737,1836.2,1835.6,6.5633]
[1746625416184,0.7777,1836.3,1835.6,6.5633]
[1746625416375,5.44636667,1836.1,1835.6,6.5633]
[1746625416544,5.44751321,1835.7,1835.6,6.5633]
[1746625416745,5.44738678,1835.8,1835.6,6.5633]
[1746625417174,5.44751321,1835.7,1835.6,6.5633]
[1746625417547,5.44739362,1835.8,1835.6,6.5633]
[1746625418056,5.44751321,1835.7,1835.6,6.5633]
[1746625418446,5.44734299,1835.8,1835.6,7.21963]
[1746625418649,5.44751321,1835.7,1835.6,7.21963]
[1746625419287,5.44768713,1835.7,1835.6,5.795]
[1746625419595,5.57173995,1835.7,1835.6,5.795]
[1746625419970,5.44810678,1835.5,1835.4,19.638]
[1746625420173,5.44810678,1835.5,1835.4,25.433]
[1746625420375,5.57013813,1835.5,1835.4,25.433]
[1746625420987,0.12203135,1835.5,1835.4,25.433]
[1746625421187,0.12203135,1835.5,1835.4,28.7799]
[1746625421385,5.44779846,1835.7,1835.4,28.7799]
[1746625421598,5.44735285,1835.8,1835.4,28.7799]
[1746625421865,5.44713363,1835.9,1835.5,0.05447594]
[1746625422082,5.44645697,1836.1,1835.5,8.97791353]
[1746625422285,5.4462626,1836.2,1835.6,6.8397]
[1746625422485,0.12425397,1836.1,1835.8,0.7997]
[1746625422690,5.44603507,1836.2,1835.9,5.84945908]
[1746625422900,3.7758,1836.5,1835.9,5.84945908]
[1746625422901,0.12425397,1836.1,1835.9,5.84945908]
[1746625423112,5.44658546,1836.1,1835.9,5.795]
[1746625423416,5.57036144,1836.0,1835.9,5.795]
[1746625423596,0.12373835,1836.0,1835.9,6.45447]
[1746625423901,5.44621197,1836.2,1835.9,6.45447]
[1746625424104,0.12969894,1836.1,1836.0,0.05445975]
[1746625424305,0.12969894,1836.1,1836.0,0.70535273]
[1746625424509,5.44565729,1836.4,1836.0,0.7053518]
[1746625424714,5.57742048,1836.3,1836.1,5.794]
[1746625424869,11.02341416,1836.3,1836.1,5.794]
[1746625425069,5.57742048,1836.3,1836.1,5.794]
[1746625425305,5.44602984,1836.2,1836.1,5.794]
[1746625425511,5.57696063,1836.2,1836.1,5.794]
[1746625426169,6.35856063,1836.2,1836.1,5.794]
[1746625427508,9.35856063,1836.2,1836.1,5.794]
[1746625428581,6.90856063,1836.2,1836.1,5.794]
[1746625429906,9.90856063,1836.2,1836.1,5.794]
[1746625431223,9.35856063,1836.2,1836.1,5.794]
[1746625440907,5.57696063,1836.2,1836.1,5.794]
[1746625443952,5.44577821,1836.3,1836.1,5.794]
[1746625444154,5.54907167,1836.2,1836.1,5.794]
[1746625445152,0.10304183,1836.2,1836.1,5.794]
[1746625445352,5.54907167,1836.2,1836.1,6.44984]
[1746625445736,5.44602984,1836.2,1836.1,6.44984]
[1746625446663,5.54858651,1836.2,1836.1,6.44984]
[1746625446866,0.10255667,1836.2,1836.1,6.44984]
[1746625447065,5.54858651,1836.2,1836.1,6.44984]
[1746625447939,0.10255667,1836.2,1836.1,6.44984]
[1746625448252,0.10255667,1836.2,1836.1,6.50430145]
[1746625448452,0.10255667,1836.2,1836.1,7.23704]
[1746625448759,5.44553881,1836.4,1836.1,7.23704]
[1746625448973,5.44553881,1836.4,1836.2,0.723704]
[1746625449131,0.10293726,1836.3,1836.2,0.723704]
[1746625449327,5.44529741,1836.5,1836.2,0.723704]
[1746625449658,0.10345281,1836.4,1836.3,0.05445165]